bitfinex-derivatives/quotes_SOLF0:USTF0_20241008
["timestamp","ask_amount","ask_price","bid_price","bid_amount"]
[1728408768654,5.48,142.91,142.87,10.75]
[1728408769453,8.9807,142.91,142.88,3.5011]
[1728408774659,19.7307,142.91,142.88,3.5011]
[1728408776370,3.5011,142.89,142.87,3.5014]
[1728408776569,3.5011,142.89,142.85,1.49202]
[1728408777263,3.5012,142.89,142.86,3.5018]
[1728408779068,3.5012,142.89,142.87,3.5015]
[1728408779772,14.2509,142.9,142.87,3.5015]
[1728408779973,3.5009,142.9,142.85,12.24202]
[1728408780266,19.7307,142.91,142.88,3.5012]
[1728408780472,10.75,142.93,142.88,10.75]
[1728408780660,10.75,142.91,142.88,3.5013]
[1728408780860,14.2507,142.91,142.88,3.5013]
[1728408781065,10.75,142.9,142.85,12.24202]
[1728408781266,14.251,142.9,142.87,3.5014]
[1728408782265,10.75,142.89,142.85,1.49202]
[1728408782863,14.2513,142.89,142.86,3.5017]
[1728408784572,10.75,142.89,142.85,1.49202]
[1728408784765,10.75,142.86,142.85,0.12502]
[1728408785458,14.2518,142.86,142.85,0.12502]
[1728408786860,10.75,142.86,142.85,0.12502]
[1728408787071,10.75,142.86,142.85,3.62712]
[1728408787274,10.75,142.86,142.85,0.12502]
[1728408787580,10.75,142.86,142.8,69.73301887]
[1728408787768,10.75,142.83,142.8,3.5032]
[1728408787961,14.2527,142.83,142.8,3.5032]
[1728408788362,5.48,142.85,142.8,10.75]
[1728408788573,8.9821,142.85,142.8,10.75]
[1728408789573,14.2523,142.84,142.8,10.75]
[1728408789778,10.75,142.84,142.8,10.75]
[1728408790166,10.75,142.84,142.82,3.5028]
[1728408790874,10.75,142.84,142.79,0.12502]
[1728408791068,14.2524,142.84,142.81,3.5029]
[1728408791264,10.75,142.84,142.81,3.5029]
[1728408791465,10.75,142.84,142.79,10.87502]
[1728408791769,14.2524,142.84,142.8,3.5032]
[1728408791961,14.2524,142.84,142.79,10.87502]
[1728408792563,14.2524,142.84,142.81,3.5028]
[1728408793789,10.75,142.82,142.8,3.5032]
[1728408794376,14.2531,142.81,142.79,3.62842]
[1728408794681,10.75,142.8,142.79,0.12502]
[1728408794973,14.2533,142.8,142.79,1e-08]
[1728408795175,14.2533,142.8,142.72,2.771]
[1728408795176,10.75,142.8,142.72,2.771]
[1728408795377,10.75,142.75,142.73,3.63002]
[1728408795775,2.7909,142.8,142.73,0.12502]
[1728408795982,10.75,142.77,142.75,3.5044]
[1728408796179,16.23,142.79,142.74,10.75]
[1728408796779,10.75,142.79,142.75,10.75]
[1728408796978,5.48,142.8,142.75,10.75]
[1728408797372,8.9833,142.8,142.77,3.5038]
[1728408797569,16.23,142.82,142.76,12.1458]
[1728408797873,10.75,142.84,142.79,10.75]
[1728408798087,16.23,142.84,142.82,3.5027]
[1728408799076,19.7324,142.84,142.82,3.5027]
[1728408799674,5.48,142.84,142.81,10.75]
[1728408799883,5.48,142.84,142.79,10.75]
[1728408800286,8.9824,142.84,142.81,3.5028]
[1728408800686,5.48,142.84,142.79,10.75]
[1728408801478,16.23,142.84,142.79,10.75]
[1728408801780,10.75,142.81,142.77,16.23]
[1728408802082,10.75,142.8,142.76,1.3958]
[1728408802487,14.2534,142.8,142.77,3.5039]
[1728408802786,10.75,142.8,142.76,1.3958]
[1728408803285,10.75,142.8,142.77,3.504]
[1728408803888,14.2533,142.8,142.77,3.504]
[1728408804678,14.2533,142.8,142.76,1.3958]
[1728408804876,14.2533,142.8,142.78,3.5038]
[1728408805089,14.2531,142.81,142.78,3.5038]
[1728408805395,10.75,142.81,142.78,3.5038]
[1728408805785,14.2532,142.81,142.78,3.5038]
[1728408806591,10.75,142.8,142.78,3.5038]
[1728408806892,14.2533,142.8,142.78,3.5038]
[1728408807290,3.5037,142.79,142.77,3.504]
[1728408807490,10.75,142.8,142.76,1.3958]
[1728408808179,10.75,142.8,142.78,3.5036]
[1728408811184,14.2533,142.8,142.78,3.5036]
[1728408811892,10.75,142.8,142.76,1.3958]
[1728408812096,10.75,142.77,142.76,3.5041]
[1728408812397,10.75,142.77,142.73,0.12502]
[1728408812697,14.2541,142.77,142.74,3.5046]
[1728408812897,10.75,142.76,142.74,3.5046]
[1728408813099,10.75,142.76,142.73,0.12502]
[1728408813291,10.75,142.76,142.75,3.5045]
[1728408814790,14.2538,142.78,142.73,0.12502]
[1728408814992,14.2538,142.78,142.76,3.5043]
[1728408815588,14.2538,142.78,142.75,3.5044]
[1728408817599,10.75,142.76,142.75,3.5044]
[1728408817801,10.75,142.76,142.74,3.5046]
[1728408818686,14.2546,142.75,142.73,0.12502]
[1728408818900,10.75,142.74,142.73,0.12502]
[1728408819185,14.2547,142.74,142.73,0.12502]
[1728408825901,1.3288,142.76,142.73,0.12502]
[1728408826100,10.75,142.78,142.73,10.87502]
[1728408826410,5.48,142.77,142.73,10.87502]
[1728408826600,5.48,142.77,142.76,3.5043]
[1728408827304,5.48,142.77,142.73,10.87502]
[1728408827506,5.48,142.77,142.75,3.5044]
[1728408827908,5.48,142.77,142.76,3.5043]
[1728408829405,5.48,142.77,142.75,3.5044]
[1728408829599,5.48,142.77,142.74,1.4074]
[1728408830411,10.75,142.78,142.76,3.5043]
[1728408833097,7.12932,142.85,142.74,1.4074]
[1728408833297,14.2532,142.81,142.75,10.75]
[1728408833504,10.75,142.81,142.75,10.75]
[1728408834209,14.2532,142.81,142.78,3.5037]
[1728408834508,10.75,142.8,142.78,3.5037]
[1728408834899,10.75,142.8,142.75,10.75]
[1728408835100,10.75,142.8,142.77,3.5039]
[1728408835309,10.75,142.8,142.75,10.75]
[1728408835801,14.2534,142.8,142.78,3.5036]
[1728408839403,10.75,142.8,142.78,3.5036]
[1728408839605,10.75,142.8,142.75,10.75]
[1728408840406,14.2533,142.8,142.75,10.75]
[1728408840805,14.2533,142.8,142.77,3.5038]
[1728408842013,10.75,142.8,142.74,15.0419]
[1728408842205,14.2538,142.78,142.74,15.0419]
[1728408842608,14.2538,142.78,142.75,3.5043]
[1728408842805,14.2538,142.78,142.74,15.0419]
[1728408843109,10.75,142.79,142.74,15.0419]
[1728408843415,5.46,142.8,142.78,3.5038]
[1728408843805,8.9634,142.8,142.78,3.5038]
[1728408844510,16.21,142.8,142.76,3.5041]
[1728408845306,3.5037,142.79,142.76,3.5041]
[1728408845811,16.21,142.8,142.76,3.5041]
[1728408845812,10.75,142.78,142.76,3.5041]
[1728408846113,14.2539,142.78,142.76,3.5041]
[1728408848210,10.75,142.77,142.74,1.4074]
[1728408848413,10.75,142.77,142.74,4.9121]
[1728408848615,10.75,142.78,142.74,1.4074]
[1728408848814,14.2539,142.78,142.75,3.5043]
[1728408849117,10.75,142.78,142.75,3.5043]
[1728408850804,10.75,142.78,142.76,3.5043]
[1728408851011,16.21,142.8,142.74,12.1574]
[1728408851314,16.21,142.8,142.77,3.504]
[1728408851315,3.5037,142.79,142.77,3.504]
[1728408853817,19.7134,142.8,142.74,12.1574]
[1728408854127,19.7134,142.8,142.78,3.5036]
[1728408855914,3.5031,142.81,142.79,3.5035]
[1728408856222,0.12502,142.85,142.8,10.75]
[1728408856422,0.12502,142.85,142.81,10.75]
[1728408856712,10.87502,142.85,142.79,10.75]
[1728408857214,3.5026,142.83,142.81,3.5029]
[1728408857813,3.5024,142.84,142.79,10.75]
[1728408858005,0.12502,142.85,142.8,10.75]
[1728408858418,3.62722,142.85,142.82,3.5026]
[1728408859618,3.62722,142.85,142.81,10.75]
[1728408859619,0.12502,142.85,142.81,10.75]
[1728408859817,0.12502,142.85,142.82,10.75]
[1728408860018,0.12502,142.85,142.84,3.5023]
[1728408860917,0.12502,142.85,142.82,3.5027]
[1728408860918,10.87502,142.85,142.82,3.5027]
[1728408861418,0.12502,142.85,142.84,3.5023]
[1728408864619,0.12502,142.85,142.84,14.2523]
[1728408868122,3.62572,142.91,142.82,5.46]
[1728408868123,3.62572,142.91,142.88,3.5012]
[1728408868624,3.5009,142.9,142.88,3.5012]
[1728408868824,10.75,142.9,142.86,3.5016]
[1728408869029,10.75,142.9,142.85,10.75]
[1728408869528,14.2509,142.9,142.87,3.5013]
[1728408870528,3.5011,142.89,142.87,3.5013]
[1728408871229,14.2509,142.9,142.85,10.75]
[1728408871440,14.2509,142.9,142.88,3.5013]
[1728408872129,10.75,142.9,142.89,3.5011]
[1728408872333,10.75,142.9,142.85,10.75]
[1728408872534,10.75,142.88,142.85,5.46]
[1728408872728,3.5017,142.87,142.84,3.5022]
[1728408873531,14.2514,142.88,142.85,3.5019]
[1728408874545,10.75,142.88,142.85,3.5019]
[1728408874738,10.75,142.89,142.85,10.75]
[1728408874937,10.75,142.89,142.87,3.5013]
[1728408875133,14.251,142.9,142.87,3.5013]
[1728408875944,14.251,142.9,142.87,3.5015]
[1728408876145,10.75,142.9,142.85,10.75]
[1728408876338,14.2512,142.89,142.84,1.4115]
[1728408876537,14.2512,142.89,142.86,3.5017]
[1728408876737,3.5017,142.87,142.84,1.4115]
[1728408876938,14.2517,142.87,142.84,4.9136]
[1728408877149,10.75,142.87,142.84,1.4115]
[1728408877450,3.502,142.86,142.82,16.21]
[1728408877639,10.75,142.85,142.83,3.5025]
[1728408877844,5.46,142.89,142.81,5.46]
[1728408877845,14.2524,142.84,142.81,5.46]
[1728408878242,10.75,142.84,142.81,3.5029]
[1728408878443,10.75,142.83,142.8,1.4059]
[1728408878649,10.75,142.83,142.8,3.5031]
[1728408879451,10.75,142.83,142.81,3.5029]
[1728408880643,14.2526,142.83,142.81,3.5029]
[1728408881148,10.75,142.85,142.81,10.75]
[1728408881354,2.7753,142.88,142.79,0.12502]
[1728408881355,10.75,142.87,142.82,10.75]
[1728408881648,10.75,142.87,142.83,3.5024]
[1728408881852,3.5019,142.86,142.83,3.5024]
[1728408882052,10.75,142.87,142.83,3.5024]
[1728408882252,10.75,142.86,142.82,3.5028]
[1728408882554,3.5022,142.85,142.82,3.5028]
[1728408882853,14.2519,142.86,142.81,10.75]
[1728408883150,10.75,142.86,142.81,10.75]
[1728408883547,14.2519,142.86,142.83,3.5024]
[1728408885652,3.5022,142.85,142.83,3.5024]
[1728408886856,14.2519,142.86,142.83,3.5024]
[1728408889356,14.2519,142.86,142.84,3.5023]
[1728408890248,14.2517,142.87,142.85,3.5021]
[1728408892556,10.75,142.88,142.83,3.5023]
[1728408892861,10.75,142.9,142.85,10.75]
[1728408893253,14.251,142.9,142.87,3.5014]
[1728408893757,3.5011,142.89,142.87,3.5014]
[1728408894257,3.62572,142.91,142.86,10.75]
[1728408894652,3.62572,142.91,142.89,3.5009]
[1728408896054,0.12502,142.91,142.89,3.5009]
[1728408896258,0.12502,142.91,142.9,3.5008]
[1728408898653,0.12502,142.91,142.88,10.75]
[1728408898858,10.75,142.9,142.86,5.46]
[1728408899363,10.87502,142.91,142.86,16.21]
[1728408899571,10.87502,142.91,142.89,3.5009]
[1728408900467,14.37562,142.91,142.89,3.5009]
[1728408902066,10.87502,142.91,142.86,16.21]
[1728408902268,10.87502,142.91,142.88,3.5012]
[1728408902764,14.37572,142.91,142.88,3.5012]
[1728408904568,10.87502,142.91,142.87,10.75]
[1728408904874,10.87502,142.91,142.89,3.5009]
[1728408906976,0.12502,142.91,142.9,3.5008]
[1728408907674,6.3025,143.01,142.9,16.19]
[1728408907877,14.2488,142.99,142.96,3.4994]
[1728408908076,10.75,143.0,142.96,3.4994]
[1728408908275,10.75,143.0,142.96,14.2494]
[1728408908485,6.23644552,143.02,142.96,3.4994]
[1728408908780,10.75,142.99,142.96,3.4994]
[1728408909274,10.75,143.01,142.96,3.4994]
[1728408909465,14.2481,143.01,142.96,3.4994]
[1728408910073,10.75,143.01,142.96,3.4994]
[1728408910269,3.4985,143.0,142.96,3.4994]
[1728408911071,10.75,143.01,142.96,3.4994]
[1728408911273,14.2482,143.01,142.96,3.4994]
[1728408912687,3.4985,143.0,142.96,3.4994]
[1728408912976,10.75,143.0,142.96,3.4994]
[1728408914376,14.2485,143.0,142.96,3.4994]
[1728408915074,10.75,143.0,142.96,3.4994]
[1728408915281,3.4987,142.99,142.96,3.4994]
[1728408915779,10.75,143.0,142.96,3.4994]
[1728408915976,3.4985,143.0,142.96,14.2494]
[1728408916482,10.75,143.01,142.96,14.2494]
[1728408916781,12.1943,143.02,142.96,14.2494]
[1728408916980,10.75,143.02,142.96,14.2494]
[1728408917279,10.87502,143.03,143.01,3.498]
[1728408917984,14.37272,143.03,143.01,3.498]
[1728408918185,10.87502,143.03,143.01,3.498]
[1728408918581,14.37272,143.03,142.99,10.75]
[1728408918783,14.37272,143.03,143.0,3.4983]
[1728408919379,10.87502,143.03,143.0,3.4983]
[1728408919575,10.75,143.02,142.98,5.44]
[1728408920080,3.4983,143.01,142.98,8.9387]
[1728408920390,10.75,142.99,142.94,16.19]
[1728408920580,14.2488,142.99,142.96,3.4992]
[1728408920776,14.2488,142.99,142.94,16.19]
[1728408920978,10.75,143.0,142.95,10.75]
[1728408921281,16.31502,143.03,142.98,10.75]
[1728408921477,5.56502,143.03,142.99,10.75]
[1728408921673,9.06282,143.03,143.0,3.4982]
[1728408924090,3.62282,143.03,143.0,3.4982]
[1728408924287,3.4979,143.02,143.0,3.4982]
[1728408924984,0.12502,143.03,142.98,10.75]
[1728408925192,3.62272,143.03,143.01,3.4981]
[1728408925392,0.12502,143.03,142.99,10.75]
[1728408925687,0.12502,143.03,142.99,1.328]
[1728408925887,0.12502,143.03,143.0,10.75]
[1728408926192,0.12502,143.03,143.01,3.4979]
[1728408927795,0.12502,143.03,143.01,3.4981]
[1728408928185,0.12502,143.03,143.0,10.75]
[1728408928387,0.12502,143.03,143.02,3.4979]
[1728408930282,0.12502,143.03,143.02,14.2479]
[1728408931392,0.12502,143.03,143.02,3.4979]
[1728408931583,0.12502,143.03,142.99,14.8198]
[1728408931897,3.62282,143.03,143.0,8.9382]
[1728408932391,10.87502,143.03,142.99,4.8265]
[1728408932599,3.498,143.02,142.99,4.8265]
[1728408932793,3.498,143.02,142.99,1.328]
[1728408933000,10.87502,143.03,143.0,3.4983]
[1728408933184,3.4979,143.02,143.0,3.4983]
[1728408933390,10.87502,143.03,143.0,3.4983]
[1728408933787,14.37282,143.03,143.0,3.4983]
[1728408933990,10.87502,143.03,142.99,4.8265]
[1728408934292,10.75,143.02,142.97,10.75]
[1728408934489,3.4983,143.01,142.99,3.4986]
[1728408934696,10.75,143.02,142.99,3.4986]
[1728408935695,0.12502,143.03,143.01,3.498]
[1728408936299,0.12502,143.03,143.02,3.4979]
[1728408942006,0.12502,143.03,143.01,10.75]
[1728408942007,0.12502,143.03,143.01,3.498]
[1728408942812,0.12502,143.03,143.02,3.4979]
[1728408944214,0.12502,143.03,143.01,3.498]
[1728408945919,0.12502,143.03,143.02,3.4979]
[1728408946220,0.12502,143.03,143.02,14.2479]
[1728408948310,0.12502,143.03,143.02,3.4979]
[1728408957323,0.12502,143.03,143.0,5.44]
[1728408957526,10.75,143.02,142.97,10.75]
[1728408957722,10.75,143.02,142.97,16.19]
[1728408958124,14.2479,143.02,142.98,3.4987]
[1728408958327,14.2479,143.02,142.97,16.19]
[1728408960132,14.2479,143.02,142.99,3.4985]
[1728408960433,10.75,143.01,142.96,16.19]
[1728408960733,10.75,143.02,142.99,3.4984]
[1728408960931,14.248,143.02,142.99,3.4984]
[1728408961930,3.4982,143.01,142.99,3.4984]
[1728408962926,14.248,143.02,142.99,3.4984]
[1728408963132,0.12502,143.03,143.0,10.75]
[1728408963331,0.12502,143.03,143.01,10.75]
[1728408963733,0.12502,143.03,143.02,3.4979]
[1728408964735,0.12502,143.03,143.01,3.498]
[1728408968726,14.37282,143.03,143.0,8.9182]
[1728408968932,10.75,143.02,142.97,12.0653]
[1728408969134,10.75,143.01,142.97,5.42]
[1728408969336,10.75,143.01,142.96,10.75]
[1728408969929,10.75,142.99,142.94,10.75]
[1728408970147,10.75,142.97,142.92,14.8474]
[1728408970431,10.75,142.97,142.92,12.1517]
[1728408970638,10.75,142.97,142.92,17.5717]
[1728408971032,14.2491,142.97,142.92,17.5717]
[1728408971442,10.75,142.97,142.92,17.5717]
[1728408971737,0.12502,143.03,142.96,10.75]
[1728408971932,0.12502,143.03,143.0,10.75]
[1728408974243,0.12502,143.03,143.02,3.4979]
[1728408974448,0.12502,143.03,142.98,18.1893]
[1728408974834,16.91502,143.03,142.96,5.42]
[1728408975846,3.498,143.02,142.99,3.4985]
[1728408976046,0.12502,143.03,142.96,22.21]
[1728408976340,3.62282,143.03,143.0,3.4982]
[1728408976546,0.12502,143.03,142.96,22.21]
[1728408976941,3.4979,143.02,142.99,3.4985]
[1728408978750,3.4979,143.02,142.96,22.21]
[1728408978751,3.4979,143.02,143.0,3.4984]
[1728408980943,3.4979,143.02,142.99,3.4985]
[1728408981347,0.12502,143.03,142.99,3.4985]
[1728408981545,3.4983,143.01,142.99,3.4985]
[1728408982444,3.498,143.02,142.99,3.4985]
[1728408983453,3.4988,142.99,142.96,3.4992]
[1728408984760,3.4992,142.97,142.95,3.4995]
[1728408985057,22.21,143.0,142.94,1.4432]
[1728408985355,3.4993,142.97,142.94,3.4998]
[1728408985551,22.21,143.0,142.94,3.4998]
[1728408985959,3.4988,142.99,142.94,3.4998]
[1728408986252,22.21,143.0,142.94,3.4998]
[1728408986453,3.5001,142.94,142.91,0.12502]
[1728408986648,22.21,142.96,142.91,0.12502]
[1728408986855,5.42,142.96,142.91,0.12502]
[1728408987055,5.42,142.96,142.94,3.4997]
[1728408987258,5.42,142.99,142.91,0.12502]
[1728408988254,5.42,142.99,142.94,3.4997]
[1728408988446,5.42,142.99,142.91,0.12502]
[1728408988848,3.4995,142.96,142.93,3.5]
[1728408989052,16.79,142.98,142.93,3.5]
[1728408989355,16.79,142.98,142.92,3.5002]
[1728408989560,16.79,142.98,142.91,0.12502]
[1728408990151,3.4996,142.96,142.93,3.4999]
[1728408990650,16.79,142.98,142.93,3.4999]
[1728408993549,3.4996,142.95,142.93,3.4999]
[1728408997362,14.2595,142.96,142.93,3.4999]
[1728408999766,3.4997,142.95,142.93,3.4999]
[1728408999964,3.4997,142.95,142.91,10.88502]
[1728409000168,10.76,142.96,142.92,3.5001]
[1728409000357,3.5001,142.93,142.91,0.12502]
[1728409000561,10.76,142.94,142.91,0.12502]
[1728409001065,3.5001,142.93,142.91,3.62542]
[1728409001368,14.2601,142.93,142.91,3.62542]
[1728409001558,10.76,142.93,142.91,3.62542]
[1728409001752,14.2599,142.94,142.91,3.62542]
[1728409002458,14.2599,142.94,142.92,3.5003]
[1728409005666,10.76,142.93,142.91,0.12502]
[1728409005879,14.2603,142.92,142.91,0.12502]
[1728409018171,5.42,142.92,142.91,0.12502]
[1728409018366,14.2602,142.93,142.91,0.12502]
[1728409018880,14.2602,142.93,142.91,3.62542]
[1728409020376,14.2603,142.92,142.91,0.12502]
[1728409020581,14.2603,142.92,142.86,1.3665]
[1728409020582,10.76,142.92,142.86,1.3665]
[1728409020880,10.76,142.88,142.86,1.3665]
[1728409021669,10.76,142.88,142.87,3.5014]
[1728409021874,10.76,142.88,142.86,1.3665]
[1728409022267,3.5016,142.87,142.86,1.3665]
[1728409022477,10.76,142.87,142.85,0.12502]
[1728409023275,3.5018,142.86,142.85,0.12502]
[1728409023576,10.76,142.87,142.85,0.12502]
[1728409024180,14.2618,142.87,142.85,0.12502]
[1728409024987,10.76,142.89,142.85,0.12502]
[1728409025285,14.2612,142.89,142.85,10.88502]
[1728409025488,16.18,142.9,142.88,3.5012]
[1728409025785,19.6809,142.9,142.88,3.5012]
[1728409026478,19.6809,142.9,142.87,3.5015]
[1728409026786,3.5011,142.89,142.87,3.5015]
[1728409027189,10.76,142.88,142.86,3.5017]
[1728409027495,10.76,142.88,142.85,0.12502]
[1728409027794,14.2611,142.89,142.85,0.12502]
[1728409028087,14.2611,142.89,142.86,3.5018]
[1728409028382,10.76,142.89,142.85,0.12502]
[1728409028585,19.6809,142.9,142.85,0.12502]
[1728409028791,10.76,142.89,142.87,3.5015]
[1728409029086,10.76,142.89,142.85,0.12502]
[1728409029286,10.76,142.89,142.87,3.5016]
[1728409029287,14.2612,142.89,142.87,3.5016]
[1728409031087,10.76,142.89,142.85,0.12502]
[1728409031294,16.18,142.91,142.89,3.5009]
[1728409031692,16.18,142.91,142.86,1.3496]
[1728409031887,14.2612,142.89,142.86,1.3496]
[1728409032387,14.2612,142.89,142.87,3.5014]
[1728409034291,3.5012,142.89,142.87,3.5014]
[1728409034493,19.6807,142.91,142.89,3.5011]
[1728409035196,14.2607,142.91,142.89,3.5011]
[1728409035389,16.18,142.94,142.89,10.76]
[1728409035791,10.76,142.94,142.89,10.76]
[1728409037185,3.5003,142.93,142.91,3.5006]
[1728409037387,10.76,142.94,142.89,10.76]
[1728409037694,3.5002,142.93,142.9,3.5007]
[1728409037997,14.2602,142.93,142.88,10.76]
[1728409038194,14.2602,142.93,142.87,2.7936]
[1728409038195,14.26,142.94,142.91,3.5004]
[1728409039300,3.5001,142.93,142.91,3.5004]
[1728409041493,1.53242,142.97,142.89,5.42]
[1728409041694,10.88502,142.97,142.93,10.76]
[1728409042191,14.38432,142.97,142.94,3.4998]
[1728409042497,10.76,142.96,142.9,10.76]
[1728409042801,10.76,142.94,142.92,3.5002]
[1728409043585,14.2598,142.95,142.9,10.76]
[1728409043791,10.76,142.95,142.93,3.4999]
[1728409044894,10.76,142.95,142.91,12.1967]
[1728409045095,14.38422,142.97,142.93,10.76]
[1728409045394,14.38422,142.97,142.94,10.76]
[1728409045395,0.12502,142.97,142.94,10.76]
[1728409047402,10.76,142.96,142.93,5.42]
[1728409047604,10.76,142.96,142.92,2.7849]
[1728409047800,10.76,142.94,142.93,3.5001]
[1728409047997,10.76,142.96,142.91,12.1967]
[1728409048201,10.76,142.96,142.91,1.4367]
[1728409048401,3.4995,142.96,142.94,3.4998]
[1728409049202,3.4998,142.95,142.92,3.5002]
[1728409050302,16.81,142.96,142.91,4.9372]
[1728409050505,22.23,142.96,142.91,4.9372]
[1728409050704,3.5002,142.93,142.91,1.4367]
[1728409051603,3.5002,142.93,142.91,4.9373]
[1728409052098,3.5002,142.93,142.91,1.4367]
[1728409052803,22.23,142.96,142.9,3.5007]
[1728409053001,3.5002,142.93,142.9,3.5007]
[1728409053208,22.23,142.96,142.9,3.5007]
[1728409053811,3.5002,142.93,142.9,3.5007]
[1728409054006,22.23,142.96,142.9,3.5007]
[1728409054213,16.81,142.94,142.88,3.5012]
[1728409054506,16.81,142.94,142.87,1.338]
[1728409054707,3.5005,142.92,142.87,1.338]
[1728409054904,3.5005,142.92,142.9,3.5007]
[1728409055103,16.81,142.94,142.87,1.338]
[1728409055304,3.5004,142.92,142.87,1.338]
[1728409055505,3.5004,142.92,142.89,3.5009]
[1728409056402,3.5006,142.91,142.87,1.338]
[1728409056607,16.81,142.92,142.87,1.338]
[1728409056815,22.21,142.92,142.85,0.12502]
[1728409057200,3.5008,142.9,142.86,3.5017]
[1728409057508,22.21,142.92,142.86,3.5017]
[1728409058300,22.21,142.92,142.87,3.5016]
[1728409058905,22.21,142.92,142.85,0.12502]
[1728409059411,3.5009,142.9,142.88,3.5012]
[1728409061307,5.4,142.92,142.85,0.12502]
[1728409061509,3.5008,142.91,142.85,0.12502]
[1728409062417,3.5008,142.91,142.88,3.5012]
[1728409063508,3.5008,142.91,142.85,0.12502]
[1728409065019,3.5008,142.91,142.88,3.5012]
[1728409067415,5.4,142.92,142.88,3.5012]
[1728409067619,3.5009,142.9,142.88,3.5012]
[1728409068124,3.5009,142.9,142.85,0.12502]
[1728409068327,16.81,142.91,142.85,0.12502]
[1728409069023,3.5015,142.88,142.86,3.5018]
[1728409069216,16.81,142.89,142.85,0.12502]
[1728409069619,3.5015,142.88,142.85,3.62692]
[1728409069820,16.81,142.89,142.85,3.62692]
[1728409070324,3.5017,142.87,142.85,3.62692]
[1728409070513,14.2617,142.87,142.85,0.12502]
[1728409072121,14.2618,142.86,142.85,0.12502]
[1728409072317,10.76,142.86,142.79,10.88502]
[1728409072619,5.4,142.88,142.79,0.12502]
[1728409072620,3.5027,142.83,142.79,0.12502]
[1728409072820,10.76,142.82,142.79,0.12502]
[1728409073227,10.76,142.82,142.8,3.5031]
[1728409074431,14.2628,142.82,142.79,3.62842]
[1728409077942,3.503,142.81,142.79,3.62842]
[1728409078146,3.503,142.81,142.79,0.12502]
[1728409078341,14.263,142.81,142.79,0.12502]
[1728409079841,14.263,142.81,142.79,3.62852]
[1728409080846,14.2629,142.82,142.79,3.62852]
[1728409081041,14.2629,142.82,142.8,3.5032]
[1728409081347,16.16,142.84,142.79,0.12502]
[1728409081646,19.6624,142.84,142.81,3.5029]
[1728409081839,16.16,142.84,142.81,3.5029]
[1728409082243,5.4,142.84,142.79,10.88502]
[1728409082446,5.4,142.84,142.82,3.5027]
[1728409083152,5.4,142.84,142.83,3.5025]
[1728409083353,14.2617,142.87,142.82,10.76]
[1728409083659,10.76,142.87,142.83,3.5024]
[1728409083949,3.502,142.86,142.82,10.76]
[1728409084151,3.502,142.86,142.83,3.5025]
[1728409084947,3.502,142.86,142.84,3.5022]
[1728409085643,3.502,142.86,142.82,10.76]
[1728409085846,3.502,142.86,142.83,3.5024]